Cogmind - Beta 9.4 @@@ ROGUE MODE // 2020.01.14 @ 16:54:41 // Winter2019/RPGLIKE Player: FontPeg Result: Destroyed by H-55 Commando with Assault Rifle Performance ------------- Evolutions (3) 1500 Regions Visited (5) 1000 Robots Destroyed (55) 275 Value Destroyed (2019) 2019 Prototype IDs (2) 40 Alien Tech Used (0) 0 Bonus (265) 265 TOTAL SCORE: 5099 Bonus ------- High Alert Combat Kills 79 Entered Garrisons 200 Friendly Fire -14 Cogmind --------- Core Integrity 0/1000 Matter 300/300 Energy 153/250 System Corruption 0% Temperature Cool (463) Movement Hovering (52) Location -7/Garrison Parts ------- > --- POWER (1) -------- Micro Nuclear Core > --- PROPULSION (3) --- Airjet Airjet Gravmag System > --- UTILITY (5) ------ Cryofiber Web Advanced Sensor Array Improved Signal Interpreter Armor Integrity Analyzer Layered Light Armor Plating > --- WEAPON (2) ------- Advanced Beam Rifle Heavy Particle Cannon > --- INVENTORY (3) ---- Airjet Relay Coupler [NC] (52) Remote Datajack Peak State ------------ > --- POWER ------------ Micro Nuclear Core > --- PROPULSION ------- Airjet Airjet Gravmag System > --- UTILITY ---------- Cryofiber Web Advanced Sensor Array Improved Signal Interpreter Armor Integrity Analyzer Layered Light Armor Plating > --- WEAPON ----------- Advanced Beam Rifle Improved Assault Rifle > --- INVENTORY -------- Airjet Improved ECM Suite [Rating: 35] Favorites ----------- Power Light Deuterium Engine Engine Light Deuterium Engine Power Core Micro Nuclear Core Propulsion Airjet Leg Aluminum Leg Wheel Compact Wheel Hover Unit Airjet Utility Armor Integrity Analyzer Device Advanced Sensor Array Processor Armor Integrity Analyzer Protection Insulated Plating Weapon Grenade Launcher Energy Gun Advanced Beam Rifle Energy Cannon Heavy Particle Cannon Ballistic Gun Improved Assault Rifle Launcher Grenade Launcher Build | -11 -10 -9 -8 -7 -7 ------- Run | Scr Mat Mat Mat Fac Gar Slots Evolved 7 | 3 . 1 2 1 . Power . | . . . . . . Propulsion 2 | 1 . . 1 . . Utility 4 | 1 . 1 1 1 . Weapon 1 | 1 . . . . . Parts Attached 40 | 5 3 14 13 5 . Power 5 | 1 . 2 1 1 . Engine 3 | 1 . 2 . . . Core 2 | . . . 1 1 . Reactor . | . . . . . . Propulsion 10 | 2 . 4 3 1 . Treads . | . . . . . . Leg 2 | . . 2 . . . Wheel 2 | 2 . . . . . Hover 6 | . . 2 3 1 . Flight . | . . . . . . Utility 12 | . 2 3 5 2 . Device 4 | . 1 1 2 . . Storage . | . . . . . . Processor 4 | . 1 1 1 1 . Hackware . | . . . . . . Protection 4 | . . 1 2 1 . Artifact . | . . . . . . Weapon 13 | 2 1 5 4 1 . Energy Gun 6 | 1 . 3 2 . . Energy Cannon 1 | . . . . 1 . Ballistic Gun 3 | 1 . 1 1 . . Ballistic Cannon . | . . . . . . Launcher 3 | . 1 1 1 . . Special Weapon . | . . . . . . Impact Weapon . | . . . . . . Slashing Weapon . | . . . . . . Piercing Weapon . | . . . . . . Special Melee Weapon . | . . . . . . Unidentified Prototypes 2 | . . 1 1 . . Parts Lost 2 | . . 1 1 . . Power . | . . . . . . Propulsion . | . . . . . . Utility 1 | . . . 1 . . Weapon 1 | . . 1 . . . Highest Loss Streak 1 | . . 1 1 . . Average Slot Usage (%) 97 | . 90 97 98 100 100 Engine 8 | . 14 13 6 . . Core 2 | . . . 4 9 9 Leg 2 | . . 5 . . . Wheel 9 | . 28 17 . . . Hover 15 | . . 4 26 27 27 Device 16 | . 8 13 20 18 18 Processor 14 | . 10 15 11 17 18 Protection 4 | . . 1 7 9 9 Energy Gun 10 | . 14 11 10 9 9 Energy Cannon 1 | . . . . 6 9 Ballistic Gun 2 | . 9 . 5 2 . Launcher 7 | . 4 13 4 . . Naked Turns . | . . . . . . Heaviest Build 20 | 5 8 15 17 20 20 Greatest Support 32 | 32 32 32 27 29 29 Greatest Overweight (x) 1 | . . 1 . . . Average Overweight (x) . | . . . . . . Largest Inventory Capacity 3 | 1 1 2 2 2 3 Average Capacity 1 | . 1 1 2 2 2 Most Carried 3 | 1 1 2 2 2 3 Average Carried 1 | . . 1 1 1 2 Final Capacity 3 | 1 1 2 2 2 3 Final Carried 3 | 1 1 2 2 2 3 Class Distribution -------------------- 58% | Hacker-Mutant 17% | Hacker-Scout 16% | Hacker-Skirmisher 7% | Mutant Dominant Class ---------------- Mutant | -10/Materials Hacker-Mutant | -9/Materials Hacker-Mutant | -8/Materials Hacker-Scout | -7/Factory Hacker-Scout | -7/Garrison Resources | -11 -10 -9 -8 -7 -7 ----------- Run | Scr Mat Mat Mat Fac Gar Matter Collected 1031 | 224 23 365 367 . 52 Remotely . | . . . . . . Salvage Created 1560 | . 74 666 420 . 400 Parts 98 | . 8 51 24 . 15 Haulers Intercepted 3 | . . 1 2 . . Recyclers Shooed . | . . . . . . Parts Field Recycled . | . . . . . . Retrieved Matter . | . . . . . . Parts Self-Destructed . | . . . . . . Prevented . | . . . . . . Kills | -11 -10 -9 -8 -7 -7 ------- Run | Scr Mat Mat Mat Fac Gar Combat Hostiles Destroyed 43 | . 2 22 14 . 5 Guns 15 | . 1 5 8 . 1 Cannons 4 | . . . . . 4 AOE 24 | . 1 17 6 . . Classes Destroyed 10 | . 2 7 . . 1 Worker 2 | . . 2 . . . Builder 2 | . . 2 . . . Hauler 3 | . . 1 2 . . Operator 1 | . . 1 . . . Watcher 4 | . 1 1 2 . . Swarmer 4 | . . 4 . . . Grunt 31 | . 2 15 12 . 2 Brawler 1 | . . . . . 1 Duelist 3 | . . 1 . . 2 Sentry 4 | . . 2 2 . . Best Kill Streak 12 | . 2 12 7 . 2 Combat Bots Only 10 | . 1 10 7 . 2 Max Kills in Single Turn 4 | . 1 4 2 . 1 Gunslinging . | . . . . . . Exploded 3 | . 1 3 2 . . Melee . | . . . . . . Uniques/NPCs Destroyed . | . . . . . . Combat | -11 -10 -9 -8 -7 -7 -------- Run | Scr Mat Mat Mat Fac Gar Damage Taken 2512 | . 77 1052 530 . 853 Core 1984 | . 60 867 350 . 707 Absorbed by Shields . | . . . . . . Redirected to Core 1177 | . 50 559 305 . 263 Core Remaining (%) 77 | 100 95 44 70 . . Volleys Fired 148 | . 6 61 56 . 25 Largest 2 | . 2 2 2 . 2 Hottest 136 | . 70 95 91 . 136 Shots Fired 228 | . 12 83 90 . 43 Gun 168 | . 9 58 82 . 19 Cannon 24 | . . . . . 24 Launcher 36 | . 3 25 8 . . Special . | . . . . . . Kinetic 29 | . 3 . 26 . . Thermal 163 | . 6 58 56 . 43 Explosive 36 | . 3 25 8 . . Electromagnetic . | . . . . . . Robot Hit Streak 15 | . 4 13 15 . 8 Robot Miss Streak 4 | . 1 4 3 . 3 Penetration Max . | . . . . . . Secondary Targets . | . . . . . . Shots Hit Robots 138 | . 10 48 56 . 24 Core Hits 117 | . 9 51 45 . 12 Critical Hits . | . . . . . . Critical Kills . | . . . . . . Critical Parts Destroyed . | . . . . . . Melee Attacks . | . . . . . . Impact . | . . . . . . Slashing . | . . . . . . Piercing . | . . . . . . Sneak Attacks . | . . . . . . Combat Hostiles . | . . . . . . Follow-up Attacks . | . . . . . . Damage Inflicted 4877 | . 352 1824 2027 . 674 Guns 1894 | . 92 537 1023 . 242 Cannons 432 | . . . . . 432 Explosions 2551 | . 260 1287 1004 . . Melee . | . . . . . . Ramming . | . . . . . . Kinetic 276 | . 24 . 252 . . Thermal 2050 | . 68 537 771 . 674 Explosive 2551 | . 260 1287 1004 . . Electromagnetic . | . . . . . . Impact . | . . . . . . Slashing . | . . . . . . Piercing . | . . . . . . Highest Corruption 1 | . 1 . 1 . . Average Corruption 1 | . 1 . 1 . . Corruption Purged . | . . . . . . Effects 2 | . 1 . 1 . . Data Loss (minor) 2 | . 1 . 1 . . Overload Shots . | . . . . . . Overflow Damage 31 | . 4 22 5 . . Projectiles . | . . . . . . Explosions 31 | . 4 22 5 . . Melee . | . . . . . . Knockbacks . | . . . . . . Impact . | . . . . . . Kinetic . | . . . . . . Secondary . | . . . . . . Self-Inflicted Damage 123 | . . 123 . . . Shots 5 | . . 5 . . . Rammed . | . . . . . . Targets Rammed . | . . . . . . Kicked . | . . . . . . Crushed . | . . . . . . Highest Temperature 599 | . 12 182 86 . 599 Average Temperature 115 | . 7 36 33 . 297 Received Heat Transfer 846 | . 42 363 306 . 135 Effects 19 | . . . . . 19 Energy Bleed 1 | . . . . . 1 Interference 1 | . . . . . 1 Matter Decay 2 | . . . . . 2 Short Circuit 2 | . . . . . 2 Damage (minor) 4 | . . . . . 4 Damage (major) 7 | . . . . . 7 Damage (core) 2 | . . . . . 2 Siege Activations . | . . . . . . Robots Corrupted . | . . . . . . Combat Hostiles . | . . . . . . Parts Fried . | . . . . . . Impact Corruptions . | . . . . . . Robots Melted . | . . . . . . Combat Hostiles . | . . . . . . Parts Melted 7 | . . 5 2 . . Heat Transferred 3887 | . 150 1332 1406 . 999 Parts Sabotaged . | . . . . . . Parts Stolen . | . . . . . . Parts Stripped . | . . . . . . Power Chain Reactions . | . . . . . . Missiles Intercepted . | . . . . . . Alert | -11 -10 -9 -8 -7 -7 ------- Run | Scr Mat Mat Mat Fac Gar Peak Influence 526 | . 47 526 461 95 298 Average Influence 238 | . 21 313 245 29 166 Maximum Alert Level 2 | . . 2 2 . 1 Low Security (%) 41 | 100 100 23 38 100 52 Level 1 36 | . . 32 54 . 47 Level 2 21 | . . 44 6 . . Level 3 . | . . . . . . Level 4 . | . . . . . . Level 5 . | . . . . . . High Security . | . . . . . . Max Security . | . . . . . . Squads Dispatched 10 | . 2 5 3 . . Investigation 3 | . 1 1 1 . . Extermination . | . . . . . . Reinforcement 7 | . 1 4 2 . . Assault . | . . . . . . Garrison . | . . . . . . Intercept . | . . . . . . Construction Impeded 2 | . . 1 1 . . Haulers Reinforced . | . . . . . . Stealth | -11 -10 -9 -8 -7 -7 --------- Run | Scr Mat Mat Mat Fac Gar Distress Signals 3 | . 1 1 1 . . Communications Jammed . | . . . . . . Distress Signals . | . . . . . . Times Spotted 69 | . 7 35 18 . 9 Peak Tracking Total 7 | . 5 7 6 . 5 Tactical Retreats 5 | . . 4 . . 1 Traps | -11 -10 -9 -8 -7 -7 ------- Run | Scr Mat Mat Mat Fac Gar Traps Triggered 4 | . 1 1 . . 2 Indirectly . | . . . . . . Trap Hack Attempts . | . . . . . . Triggered . | . . . . . . Disarmed . | . . . . . . Reprogrammed . | . . . . . . Reused . | . . . . . . Traps Extracted . | . . . . . . Installed . | . . . . . . Triggered . | . . . . . . Machines | -11 -10 -9 -8 -7 -7 ---------- Run | Scr Mat Mat Mat Fac Gar Machines Disabled 4 | . . 3 . . 1 Max in Single Turn 1 | . . 1 . . 1 Garrison Relay 1 | . . . . . 1 Machines Sabotaged . | . . . . . . Garrisons Compromised . | . . . . . . Overloaded Fab Kills . | . . . . . . Fab Network Shutdowns . | . . . . . . Hacking | -11 -10 -9 -8 -7 -7 --------- Run | Scr Mat Mat Mat Fac Gar Machines Accessed 10 | . 1 3 3 3 . Terminals 8 | . 1 3 2 2 . Fabricators . | . . . . . . Repair Stations . | . . . . . . Recycling Units . | . . . . . . Scanalyzers 1 | . . . 1 . . Garrison Access 1 | . . . . 1 . Total Hacks 37 | . 3 11 15 8 . Successful 22 | . 1 7 7 7 . Failed 15 | . 2 4 8 1 . Catastrophic . | . . . . . . Database Lockouts . | . . . . . . Manual 28 | . 3 9 11 5 . Terminals 31 | . 3 11 11 6 . Fabricators . | . . . . . . Repair Stations . | . . . . . . Recycling Units . | . . . . . . Scanalyzers 4 | . . . 4 . . Garrison Access 2 | . . . . 2 . Terminal Hacks 9 | . . 4 2 3 . Level Access Points 1 | . . 1 . . . Unreport Threat 7 | . . 3 2 2 . Hauler Manifests 1 | . . . . 1 . Fabricator Hacks . | . . . . . . Repair Station Hacks . | . . . . . . Recycling Unit Hacks . | . . . . . . Scanalyzer 2 | . . . 2 . . Insert Component 1 | . . . 1 . . Analyze 1 | . . . 1 . . Garrison Access Hacks 2 | . . . . 2 . Unlock Access 1 | . . . . 1 . Coupler Status 1 | . . . . 1 . Unauthorized Hacks 22 | . 4 7 7 4 . Terminals 9 | . 1 3 3 2 . Assimilate 1 | . . . 1 . . Botnet 8 | . 1 3 2 2 . Fabricators . | . . . . . . Repair Stations . | . . . . . . Recycling Units . | . . . . . . Scanalyzers . | . . . . . . Garrison Access . | . . . . . . Data Cores Recovered . | . . . . . . Used . | . . . . . . Hacking Detections 10 | . 1 3 3 3 . Full Trace Events 5 | . 1 2 2 . . Feedback Events 2 | . 1 . 1 . . Corruption 2 | . 1 . 1 . . Feedback Blocked . | . . . . . . Robot Schematics Acquired . | . . . . . . Robots Built . | . . . . . . Matter . | . . . . . . Time . | . . . . . . Total Robot Build Rating . | . . . . . . Part Schematics Acquired 1 | . . . 1 . . Parts Built . | . . . . . . Matter . | . . . . . . Time . | . . . . . . Total Part Build Rating . | . . . . . . Parts Repaired . | . . . . . . Time . | . . . . . . Parts Recycled . | . . . . . . Recycled Matter . | . . . . . . Retrieved Matter . | . . . . . . Retrieved Components . | . . . . . . Parts Scanalyzed 1 | . . . 1 . . Part Schematics Acquired 1 | . . . 1 . . Parts Damaged . | . . . . . . Bothacking | -11 -10 -9 -8 -7 -7 ------------ Run | Scr Mat Mat Mat Fac Gar Used RIF Installer . | . . . . . . Robots Hacked . | . . . . . . Non-combat . | . . . . . . Combat . | . . . . . . Robot Hacks Applied . | . . . . . . Relay Couplers Released 1 | . . . . . 1 Machine Destruction 1 | . . . . . 1 Robots Rewired . | . . . . . . Allies Hacked . | . . . . . . Hacks Repelled . | . . . . . . Allies | -11 -10 -9 -8 -7 -7 -------- Run | Scr Mat Mat Mat Fac Gar Total Allies 1 | . . . 1 . . Largest Group 1 | . . . 1 1 . Highest-Rated Group 10 | . . . 10 10 . Highest-Rated Ally 10 | . . . 10 10 . Total Orders 6 | . . . 5 1 . GOTO 4 | . . . 3 1 . FOLLOW 2 | . . . 2 . . Ally Attacks . | . . . . . . Total Damage . | . . . . . . Kills . | . . . . . . Allies Corrupted . | . . . . . . Allies Melted . | . . . . . . Intel | -11 -10 -9 -8 -7 -7 ------- Run | Scr Mat Mat Mat Fac Gar Robot Analysis Total . | . . . . . . Derelict Logs Recovered . | . . . . . . Drone Launches . | . . . . . . Drone Recoveries . | . . . . . . Exploration | -11 -10 -9 -8 -7 -7 ------------- Run | Scr Mat Mat Mat Fac Gar Turns Passed 2096 | 32 118 922 694 127 203 Spaces Moved 2138 | 31 93 774 857 225 158 Core 13 | 13 . . . . . Treads . | . . . . . . Legs 158 | . . 158 . . . Wheels 510 | 18 93 399 . . . Hover 1457 | . . 217 857 225 158 Flight . | . . . . . . Fastest Speed 50 | 50 100 56 52 52 52 Average Speed 69 | 79 100 91 53 52 52 Slowest Speed 150 | 100 100 150 56 52 52 Overloaded Moves . | . . . . . . Propulsion Burnouts . | . . . . . . Robots Hopped . | . . . . . . Cave-ins Triggered . | . . . . . . Exploration Rate (%) 24 | 3 24 49 45 5 22 Regions Visited 5 Branch Regions . Pre-discovered Areas . | . . . . . . Known Exits Taken 4 | . 1 1 1 1 . Unknown Exits Taken 1 | 1 . . . . . Scrap Searched . | . . . . . . Spaces Dug 42 | . . 42 . . . Terrain Destroyed 233 | . 16 170 47 . . Melee . | . . . . . . Projectile . | . . . . . . AOE 233 | . 16 170 47 . . Actions | -11 -10 -9 -8 -7 -7 --------- Run | Scr Mat Mat Mat Fac Gar Total 2522 | 36 106 904 1004 235 237 Wait 81 | . . 15 33 . 33 Move 2133 | 30 92 773 856 224 158 Hop . | . . . . . . Pick Up 21 | 1 1 8 8 2 1 Fast Attach 20 | 5 3 8 3 1 . Attach 8 | . . 2 5 1 . Detach 1 | . . . 1 . . Swap 12 | . . 4 5 3 . Drop 31 | . 2 15 10 4 . Fire 148 | . 6 61 56 . 25 Melee . | . . . . . . Ram . | . . . . . . Kick . | . . . . . . Crush . | . . . . . . Escape Stasis 20 | . . . . . 20 Rewire . | . . . . . . Trap . | . . . . . . Miscellaneous 47 | . 2 18 27 . . Route ------- -11/Scrapyard -10/Materials (discovered 2 exits: *Mat / *Min) -9/Materials (discovered 4 exits: *Mat x3 / *Min) -8/Materials (discovered 2 exits: *Fac x2) -7/Factory -7/Garrison History --------- Turn | Location | Event 3 | -11/Scrapyard | Upgraded with Propulsion slot (x1) 3 | -11/Scrapyard | Upgraded with Utility slot (x1) 3 | -11/Scrapyard | Upgraded with Weapon slot (x1) 6 | -11/Scrapyard | Discovered new exit (range 16) 33 | -11/Scrapyard | Entered Materials 91 | -10/Materials | Discovered new exit (range 8) 97 | -10/Materials | Identified exit to Mines 125 | -10/Materials | Discovered new exit (range 16) 148 | -10/Materials | Identified exit to Materials 151 | -10/Materials | Entered another Materials area 153 | -9/Materials | Reached level 2 171 | -9/Materials | Identified exit to Materials 396 | -9/Materials | Reached level 3 428 | -9/Materials | Discovered new exit (range 13) 453 | -9/Materials | Identified exit to Mines 455 | -9/Materials | Destroyed 10 combat bots 457 | -9/Materials | Build established: Hacker-Mutant 668 | -9/Materials | Core integrity fell below 50% 674 | -9/Materials | Reached level 4 763 | -9/Materials | Upgraded with Utility slot (x1) 1073 | -9/Materials | Entered another Materials area 1074 | -8/Materials | Core integrity fell below 50% 1075 | -8/Materials | Reached level 5 1087 | -8/Materials | Upgraded with Utility slot (x1) 1224 | -8/Materials | Discovered new exit (range 18) 1258 | -8/Materials | Destroyed 7 combat bots 1314 | -8/Materials | Reached level 6 1345 | -8/Materials | Upgraded with Propulsion slot (x1) 1564 | -8/Materials | Discovered new exit (range 12) 1570 | -8/Materials | Identified exit to Factory 1767 | -8/Materials | Entered Factory 1767 | -7/Factory | Accompanied by 1 ally 1769 | -7/Factory | Reached level 7 1778 | -7/Factory | Upgraded with Utility slot (x1) 1892 | -7/Factory | Identified exit to Garrison 1894 | -7/Factory | Entered Garrison 1896 | -7/Garrison | Reached level 8 1906 | -7/Garrison | Triggered checkpoint 1943 | -7/Garrison | Garrison Relay disabled 2072 | -7/Garrison | Core integrity fell below 50% 2073 | -7/Garrison | Build established: Hacker-Scout 2086 | -7/Garrison | Core integrity fell below 20% 2097 | -7/Garrison | Destroyed by H-55 Commando with Assault Rifle Last Messages --------------- 02082_ Penetrated by Slug. 02083_ Overheating: Short circuit. 02083_ Broken Adv. Sensor Array permanently disabled. 02085_ Power failure averted by Cryofiber Web. 02085_ Overheating: Core damaged (-200). 02085_ Penetrated by Slug. 02086_ Power failure averted by Cryofiber Web. 02086_ Internal heat damage averted by Cryofiber Web. 02086_ Overheating: Gravmag System damaged (-1). 02086_ Overheating: Imp. Signal Interpreter damaged (-3). 02087_ Power failure averted by Cryofiber Web. 02087_ Internal heat damage averted by Cryofiber Web. 02088_ Penetrated by Slug. 02089_ Power failure averted by Cryofiber Web. 02091_ Penetrated by Slug. 02092_ Overheating: Mic. Nuclear Core damaged (-12). 02093_ Overheating: Core damaged (-130). 02094_ Slug penetrates Wall. 02095_ Overheating: Energy bleed (-18). 02097_ Penetrated by Slug. Map ----- +----------------------------------------------------+ | ?????????????????????????????????????????????? | | ?????????????????????????????????????????????? | | ?????????????????????????????????????????????? | | ?????????????????????????????????????????????? | | ??????????????######?????????????????????????? | | ??????????????# #?????????????????????????? | | ??????????????# #?????????????????????????? | | ??????????????# #?????????????????????????? | | ??????????????# ###?????????????????????????? | | ??????????????# #???????????????????????????? | | ??????????????# #???????????????????????????? | | ??????????????# #???????????????????????????? | | ??????????????# #???????????????????????????? | | ??????????????# #???????????????????????????? | | ??????????????# #???????????????????????????? | | ############### #???????????????????????????? | | ^ =/! #???????????????????????????? | | !/*%=#???????????????????????????? | | ###########%####???????????????????????????? | | #?????????#=#??????????????????????????????? | | #?????????# #??????????????????????????????? | | #????????## #??????????????????????????????? | | #?????????+ #?#####????????????????????????? | | #?????????# #?# #????????????????????????? | | #?????????# ###%= ##########???????????????? | | ##????????# *%=[ gh@= #???????????????? | | #????????############## #???????????????? | | #????????????????????#"" ""#??????????????? | | #????????????????????#######??????????????? | | #?????????????????????????????????????????? | | #?????????????????????????????????????????? | | "?????????????????????????????????????????? | | "?????????????????????????????????????????? | | "?????????????????????????????????????????? | | "?????????????????????????????????????????? | | #?????????????????????????????????????????? | | #?????????????????????????????????????????? | | ?????????????????????????????????????????? | | ?????????????????????????????????????????? | | #?????????????????????????????????????????? | | ##?????????????????????????????????????????? | | ???????????????????????????????????????????? | | ???????????????????????????????????????????? | | ???????????????????????????????????????????? | | ???????????????????????????????????????????? | | ???????????????????????????????????????????? | | ???????????????????????????????????????????? | | ?????????????????????????????????????????????? | | ?????????????????????????????????????????????? | | ?????????????????????????????????????????????? | +----------------------------------------------------+ Best States ------------- Heat Dissipation 37 Energy Generation 15 Energy Capacity 260 Matter Stores 300 Matter Capacity 300 Sight Range 18 Robot Scan Range 16 Terrain Scan Density 10 Base Temperature (-) 100 Armor Coverage 150 Resistance: KI 10 Resistance: TH 5 Resistance: EX 10 Resistance: EM 15 Evasion (%) 54 Armor Integrity Analysis 33 Offensive Hacking 20 Item Schematics ----------------- Adv. Beam Rifle | -8/Materials | Scanalyzed Robot Schematics ------------------ None Fabricated ------------ Nothing Alien Tech Used ----------------- None Achievements -------------- None Challenges ------------ None RPGLIKE | -11 -10 -9 -8 -7 -7 --------- Run | Scr Mat Mat Mat Fac Gar Levels Raised 7 | . . 3 2 1 1 XP Earned 14362 | 3000 235 4592 3385 1750 1400 XP Spent 12625 | 2985 . 4490 3000 1400 750 Upgrades 36 | 13 . 16 5 1 1 Propulsion Slot 2 | 1 . . 1 . . Utility Slot 4 | 1 . 1 1 1 . Weapon Slot 1 | 1 . . . . . Core Integrity 8 | 4 . 4 . . . Heat Dissipation 2 | 1 . 1 . . . Energy Storage 2 | 2 . . . . . Inventory Capacity 3 | 1 . 1 . . 1 Sight Range 2 | . . 2 . . . Ranged Accuracy 1 | . . . 1 . . Hack Attack % 4 | 2 . 2 . . . KI Resistance % 2 | . . 2 . . . TH Resistance % 1 | . . 1 . . . EX Resistance % 2 | . . 2 . . . TH Damage % 2 | . . . 2 . . Protomatter Created 371 | . 46 125 200 . . Integrity Restored 978 | . 27 345 606 . . Core 978 | . 27 345 606 . . Protomatter Decayed 101 | . 101 . . . . Game ------ Seed ColdRestorationCompressor Manual? 0 Play Time 00:38:31 Cumulative 55.4 hours Start 2020.01.14 @ 16:17:32 End 2020.01.14 @ 16:54:41 Sessions 1 Manual Loads 0 Difficulty Rogue Special Mode Winter2019/RPGLIKE Game No. 78 Rogue 78 Adventurer 0 Explorer 0 Win Type - Total 0 Types 0/0/0/0/0/0/0 Lore% 33 Gallery% 42 Achievement% 32 Wizard Run 0 Options --------- ASCII 0 Keyboard 0 Movement Mouse Keybinds 0 Fullscreen 2 Font 18/X11 Map View 76x50 Tactical HUD 1 Map Filters NONE Filters NONE Steam 1 RUN: b35b6816-ee55-418b-9c7f-abb01e433242